Cogmind - Beta 10.2 @@@ ROGUE MODE // 2022.02.06 @ 15:50:40 Player: Burgers_Lettuce Result: Destroyed by Y-72 Warden with Railgun Performance ------------- Evolutions (6) 3000 Regions Visited (16) 3200 Robots Destroyed (84) 420 Value Destroyed (3393) 3393 Prototype IDs (10) 200 Alien Tech Used (0) 0 Bonus (1352) 1352 TOTAL SCORE: 11565 Bonus ------- Follower Combat Kills 1378 Aligned with FarCom 300 Friendly Fire -326 Cogmind --------- Core Integrity 0/1150 Matter 290/300 Energy 100/100 System Corruption 3% Temperature Cool (0) Movement Core (150) Ox2 Location -4/Archives Parts ------- > --- POWER (3) -------- (None) > --- PROPULSION (5) --- (None) > --- UTILITY (6) ------ Centrium Medium Armor Plating > --- WEAPON (5) ------- (None) > --- INVENTORY (4) ---- Medium Storage Unit Improved Matter Compressor (300) Advanced Reclamation Unit Peak State ------------ > --- POWER ------------ Light Ion Engine Light Antimatter Reactor Light Antimatter Reactor > --- PROPULSION ------- Improved Heavy Treads Armored Huge Wheel Centrium Wheel > --- UTILITY ---------- Advanced Cryofiber Web Advanced Coolant Injector Medium Storage Unit Compact Battery Improved ECM Suite Advanced Powered Armor > --- WEAPON ----------- Plasma Rifle Heavy Beamcaster Heavy Beamcaster Heavy Ion Cannon Mini Assault Cannon > --- INVENTORY -------- Improved Treads Improved Treads Wheel Medium Storage Unit Improved Matter Compressor Advanced Focal Shield Advanced Reclamation Unit Stasis Projector [Rating: 102] Favorites ----------- Power Light Ion Engine Engine Light Ion Engine Power Core Enhanced Nuclear Core Reactor Light Antimatter Reactor Propulsion Wheel Treads Armored Treads Leg Aluminum Leg Wheel Wheel Hover Unit Antigrav System Utility Medium Storage Unit Device Improved Terrain Scanner Storage Medium Storage Unit Processor Targeting Computer Protection Layered Light Armor Plating Weapon Mini Assault Cannon Energy Gun Shock Rifle Energy Cannon Heavy Ion Cannon Ballistic Gun Gauss Rifle Ballistic Cannon Mini Assault Cannon Launcher Rocket Launcher Special Weapon Stasis Projector Build | -11 -10 -10 -9 -9 -9 -8 -8 -7 -6 -5 -5 -5 -4 -4 -4 -4 ------- Run | Scr Mat Min Mat Min Exi Min Mat Fac Fac Fac Upp Upp Fac Ext Cet Arc Slots Evolved 12 | . . . 2 . . . 2 2 2 2 . . 2 . . . Power 2 | . . . . . . . . . 1 . . . 1 . . . Propulsion 3 | . . . . . . . 2 . . . . . 1 . . . Utility 4 | . . . 1 . . . . 2 . 1 . . . . . . Weapon 3 | . . . 1 . . . . . 1 1 . . . . . . Parts Attached 186 | 7 2 3 6 10 3 11 28 25 15 5 . 9 26 22 13 1 Power 20 | 1 . . . 3 . 1 2 2 2 . . . 2 7 . . Engine 11 | 1 . . . 3 . 1 2 1 1 . . . 1 1 . . Core 5 | . . . . . . . . 1 1 . . . 1 2 . . Reactor 4 | . . . . . . . . . . . . . . 4 . . Propulsion 36 | 2 . 1 . 3 . 1 11 3 1 . . 3 6 1 4 . Treads 8 | 1 . 1 . . . . 2 . . . . 1 1 . 2 . Leg 7 | . . . . . . . 5 . . . . 1 . . 1 . Wheel 20 | 1 . . . 3 . 1 4 3 1 . . 1 4 1 1 . Hover 1 | . . . . . . . . . . . . . 1 . . . Flight . | . . . . . . . . . . . . . . . . . Utility 52 | 1 . 1 2 1 2 3 3 7 4 3 . 1 12 4 7 1 Device 30 | . . 1 1 . 1 2 2 2 2 3 . . 8 3 5 . Storage 11 | 1 . . 1 1 1 1 1 1 2 . . . 2 . . . Processor 2 | . . . . . . . . 1 . . . . . 1 . . Hackware . | . . . . . . . . . . . . . . . . . Protection 9 | . . . . . . . . 3 . . . 1 2 . 2 1 Artifact . | . . . . . . . . . . . . . . . . . Weapon 78 | 3 2 1 4 3 1 6 12 13 8 2 . 5 6 10 2 . Energy Gun 30 | 1 2 1 3 . . 3 2 4 4 1 . 1 . 7 1 . Energy Cannon 10 | . . . . . 1 . 1 1 2 . . 2 2 1 . . Ballistic Gun 17 | 2 . . 1 2 . 1 6 2 2 . . . . 1 . . Ballistic Cannon 16 | . . . . . . 2 3 6 . 1 . 2 2 . . . Launcher 1 | . . . . 1 . . . . . . . . . . . . Special Weapon 4 | . . . . . . . . . . . . . 2 1 1 . Impact Weapon . | . . . . . . . . . . . . . . . . . Slashing Weapon . | . . . . . . . . . . . . . . . . . Piercing Weapon . | . . . . . . . . . . . . . . . . . Special Melee Weapon . | . . . . . . . . . . . . . . . . . Unidentified Prototypes 8 | . . 1 . . 2 . . 3 . . . . 1 . 1 . Parts Lost 60 | . . . 1 7 . 4 3 3 . . . 10 3 6 21 2 Power 7 | . . . 1 . . . . . . . . 2 . 1 3 . Propulsion 19 | . . . . 3 . . 3 1 . . . 3 2 . 7 . Utility 12 | . . . . 1 . 1 . 1 . . . 1 1 1 4 2 Weapon 22 | . . . . 3 . 3 . 1 . . . 4 . 4 7 . Highest Loss Streak 21 | . . . 1 2 . 3 2 1 . . . 8 2 2 21 2 Average Slot Usage (%) 86 | . 85 98 98 85 76 96 93 86 87 91 94 92 77 86 44 12 Engine 5 | . 14 14 9 7 11 11 9 4 2 5 5 4 3 5 1 . Core 2 | . . . . . . . . 2 6 5 5 4 2 5 . . Treads 4 | . 14 14 11 8 . . . 7 2 . . 4 . 5 2 . Leg 3 | . . . . . . . 26 . . . . 2 4 . . . Wheel 12 | . 14 14 11 11 22 22 3 16 17 17 17 13 10 10 5 . Device 14 | . . 12 22 12 10 13 18 10 12 18 23 17 17 15 12 9 Storage 8 | . 14 14 11 17 22 17 9 7 5 5 5 5 6 10 5 . Processor 3 | . . . . . . . . 6 6 5 5 5 3 4 . . Protection 2 | . . . . . . . . 5 6 2 . 3 . . 1 3 Energy Gun 7 | . 14 14 22 5 . 7 2 7 9 11 11 10 . 5 5 . Energy Cannon 4 | . . . . . . . 2 3 6 5 5 6 9 6 1 . Ballistic Gun 3 | . 14 14 11 13 . 11 2 2 2 . . . . 2 . . Ballistic Cannon 7 | . . . . . . 13 18 7 6 10 11 7 10 5 2 . Naked Turns . | . . . . . . . . . . . . . . . . . Heaviest Build 92 | 11 12 13 22 20 19 30 37 45 53 64 61 62 92 75 80 9 Greatest Support 59 | 10 10 10 10 26 20 20 40 47 50 59 59 59 54 44 44 3 Greatest Overweight (x) 5 | 1 1 1 2 1 . 1 3 1 1 1 1 2 5 2 3 2 Average Overweight (x) . | . 1 1 1 . . 1 . . . . 1 1 2 1 . 1 Largest Inventory Capacity 16 | 6 6 6 8 8 8 16 8 8 8 8 8 8 8 8 8 4 Average Capacity 7 | 5 6 6 6 8 8 8 8 8 7 8 8 8 8 8 6 4 Most Carried 8 | 3 6 6 7 8 8 8 8 8 8 8 8 8 8 8 8 4 Average Carried 7 | 1 3 5 5 7 7 6 7 7 6 7 8 7 7 7 5 3 Final Capacity 8 | 6 6 6 8 8 8 8 8 8 8 8 8 8 8 8 4 4 Final Carried 8 | 3 6 6 7 7 8 6 8 8 8 8 8 7 8 8 4 3 Class Distribution -------------------- 38% | Skirmisher 24% | Scavenger-Skirmisher 21% | Mutant 6% | Scavenger-Mutant 4% | Gunner Dominant Class ---------------- Mutant | -10/Materials Mutant | -10/Mines Skirmisher | -9/Materials Scavenger-Skirmisher | -9/Mines Mutant | -9/Exiles Skirmisher | -8/Mines Scavenger-Skirmisher | -8/Materials Skirmisher | -7/Factory Skirmisher | -6/Factory Skirmisher | -5/Factory Gunner | -5/Upper Caves Tank | -5/Upper Caves Mutant | -4/Factory Scavenger-Skirmisher | -4/Extension Mutant | -4/Cetus Mutant | -4/Archives Resources | -11 -10 -10 -9 -9 -9 -8 -8 -7 -6 -5 -5 -5 -4 -4 -4 -4 ----------- Run | Scr Mat Min Mat Min Exi Min Mat Fac Fac Fac Upp Upp Fac Ext Cet Arc Matter Collected 4230 | 219 . 113 129 239 . 256 608 451 576 . 50 159 269 1006 155 . Remotely . | . . . . . . . . . . . . . . . . . Salvage Created 3217 | . . 46 224 51 . 211 613 698 427 . . 147 121 436 243 . Parts 189 | . . 1 26 . . 10 39 49 23 . . 6 11 19 5 . Haulers Intercepted 1 | . . . . . . . . 1 . . . . . . . . Recyclers Shooed 1 | . . . . . . . . . . . . . 1 . . . Parts Field Recycled . | . . . . . . . . . . . . . . . . . Retrieved Matter . | . . . . . . . . . . . . . . . . . Parts Self-Destructed 5 | . . . . . . . . . . . . 5 . . . . Prevented 1 | . . . . . . . . . . . . 1 . . . . Kills | -11 -10 -10 -9 -9 -9 -8 -8 -7 -6 -5 -5 -5 -4 -4 -4 -4 ------- Run | Scr Mat Min Mat Min Exi Min Mat Fac Fac Fac Upp Upp Fac Ext Cet Arc Combat Hostiles Destroyed 69 | . . 1 6 6 . 8 15 12 7 . . 2 2 7 3 . Guns 32 | . . 1 6 3 . 5 3 4 3 . . 1 . 3 3 . Cannons 33 | . . . . . . 3 12 7 4 . . 1 2 4 . . AOE 4 | . . . . 3 . . . 1 . . . . . . . . Classes Destroyed 13 | . . 1 3 1 . 2 2 4 . . . . . . . . Worker 5 | . . . . . . . . 3 . . . . 2 . . . Builder 8 | . . . . . . . 2 6 . . . . . . . . Tunneler 1 | . . . . . . . . 1 . . . . . . . . Hauler 1 | . . . . . . . . 1 . . . . . . . . Operator 1 | . . . . . . . 1 . . . . . . . . . Watcher 4 | . . . 2 . . . . . . . . . . 2 . . Swarmer 11 | . . . 3 . . 4 3 . . . . . . 1 . . Grunt 22 | . . 1 . . . 2 9 2 1 . . 2 . 4 1 . Duelist 2 | . . . . . . 1 . . 1 . . . . . . . Sentry 13 | . . . 3 . . . 3 2 4 . . . . 1 . . Hunter 3 | . . . . . . 1 . 2 . . . . . . . . Programmer 9 | . . . . . . . . 6 1 . . . 2 . . . Cetus Guard 2 | . . . . . . . . . . . . . . . 2 . Assembled 6 | . . . . 6 . . . . . . . . . . . . Thug 2 | . . . . . . . . . . . . . . 1 1 . Best Kill Streak 10 | . . 1 2 5 . 4 7 10 2 . . 2 2 2 2 . Combat Bots Only 5 | . . 1 2 5 . 4 4 3 2 . . 2 1 2 2 . Max Kills in Single Turn 8 | . . 1 1 2 . 2 2 8 1 . . 1 1 1 3 . Gunslinging 1 | . . . . . . 1 . . . . . . . . . . Exploded 2 | . . . . 2 . . . 1 . . . . . . . . Melee . | . . . . . . . . . . . . . . . . . Uniques/NPCs Destroyed . | . . . . . . . . . . . . . . . . . Combat | -11 -10 -10 -9 -9 -9 -8 -8 -7 -6 -5 -5 -5 -4 -4 -4 -4 -------- Run | Scr Mat Min Mat Min Exi Min Mat Fac Fac Fac Upp Upp Fac Ext Cet Arc Damage Taken 11589 | . . 43 318 786 . 377 744 1089 774 . . 1715 222 1265 3484 772 Core 2364 | . . . 35 166 . 27 73 69 47 . . 776 33 158 846 134 Absorbed by Shields 158 | . . . . . . . . . . . . . 85 73 . . Reduced by Siege Mode 90 | . . . . . . . . . . . . . . 6 84 . Core Remaining (%) 76 | 100 . 100 . . . 43 86 90 94 . . 22 . . . . Volleys Fired 265 | . . 4 22 18 . 16 38 49 24 . . 18 21 40 15 . Largest 5 | . . 2 3 3 . 3 3 3 4 . . 5 5 5 5 . Hottest 352 | . . 70 133 101 . 148 154 193 268 . . 352 291 315 350 . Shots Fired 734 | . . 8 63 32 . 39 111 122 96 . . 34 44 120 65 . Gun 355 | . . 8 63 21 . 27 29 56 50 . . 15 . 48 38 . Cannon 357 | . . . . . . 12 82 66 46 . . 19 42 65 25 . Launcher 11 | . . . . 11 . . . . . . . . . . . . Special 11 | . . . . . . . . . . . . . 2 7 2 . Kinetic 372 | . . 4 22 13 . 28 89 51 44 . . 13 33 60 15 . Thermal 224 | . . . 21 . . 11 . 41 40 . . 13 6 44 48 . Explosive 11 | . . . . 11 . . . . . . . . . . . . Electromagnetic 116 | . . 4 20 8 . . 22 30 12 . . 8 3 9 . . Robot Hit Streak 24 | . . 6 23 3 . 10 10 9 16 . . 8 11 15 24 . Robot Miss Streak 8 | . . 1 8 3 . 4 7 3 2 . . 4 4 2 2 . Penetration Max 1 | . . . . . . . . . 1 . . . . 1 . . Secondary Targets 3 | . . . . . . 2 . . . . . 1 . . . . Max Gunslinging Chain 1 | . . . . . . 1 . . . . . 1 . . . . Shots Hit Robots 450 | . . 6 45 9 . 29 56 82 51 . . 23 26 75 48 . Core Hits 191 | . . 3 22 10 . 22 25 34 18 . . 6 8 25 18 . Critical Hits 18 | . . . 1 . . 1 5 4 . . . . 3 4 . . Critical Kills 8 | . . . . . . 1 3 2 . . . . 1 1 . . Critical Parts Destroyed 10 | . . . 1 . . . 2 2 . . . . 2 3 . . Melee Attacks . | . . . . . . . . . . . . . . . . . Impact . | . . . . . . . . . . . . . . . . . Slashing . | . . . . . . . . . . . . . . . . . Piercing . | . . . . . . . . . . . . . . . . . Sneak Attacks . | . . . . . . . . . . . . . . . . . Combat Hostiles . | . . . . . . . . . . . . . . . . . Follow-up Attacks . | . . . . . . . . . . . . . . . . . Damage Inflicted 11620 | . . 76 628 319 . 387 1358 2776 1219 . . 652 1086 1894 1225 . Guns 4336 | . . 76 628 107 . 231 298 682 600 . . 257 . 720 737 . Cannons 5866 | . . . . . . 156 1060 964 576 . . 371 1079 1173 487 . Explosions 1370 | . . . . 212 . . . 1115 43 . . . . . . . Melee . | . . . . . . . . . . . . . . . . . Ramming 48 | . . . . . . . . 15 . . . 24 7 1 1 . Kinetic 4961 | . . 25 194 44 . 281 1007 752 541 . . 247 736 858 276 . Thermal 5037 | . . . 239 . . 106 . 1793 618 . . 289 236 808 948 . Explosive 212 | . . . . 212 . . . . . . . . . . . . Electromagnetic 1362 | . . 51 195 63 . . 351 216 60 . . 92 107 227 . . Impact . | . . . . . . . . . . . . . . . . . Slashing . | . . . . . . . . . . . . . . . . . Piercing . | . . . . . . . . . . . . . . . . . Highest Corruption 6 | . . . . 6 6 6 . 2 1 . . . 3 3 3 3 Average Corruption 2 | . . . . 4 6 6 . 1 1 . . . 1 3 3 3 Corruption Purged . | . . . . . . . . . . . . . . . . . Effects 68 | . . . . 2 7 17 . 3 . . . . 10 24 5 . Message Errors 19 | . . . . 1 4 5 . . . . . . 1 7 1 . Matter Fused 11 | . . . . . 2 3 . . . . . . 2 3 1 . Heat Flow Errors 4 | . . . . . . 1 . . . . . . 1 2 . . Energy Discharges 11 | . . . . 1 1 1 . . . . . . 4 4 . . Data Loss (minor) 9 | . . . . . . . . 2 . . . . 1 5 1 . Misfires 1 | . . . . . . 1 . . . . . . . . . . Targeting Errors 9 | . . . . . . 3 . 1 . . . . 1 2 2 . Weapon Failures 4 | . . . . . . 3 . . . . . . . 1 . . Overload Shots 3 | . . . . . . . . . . . . 3 . . . . Overflow Damage 508 | . . . . . . . 12 295 12 . . 3 141 16 29 . Projectiles 232 | . . . . . . . 12 19 12 . . 3 141 16 29 . Explosions 276 | . . . . . . . . 276 . . . . . . . . Melee . | . . . . . . . . . . . . . . . . . Knockbacks 38 | . . . . . . 2 13 6 1 . . 7 6 2 1 . Impact . | . . . . . . . . . . . . . . . . . Kinetic 36 | . . . . . . 2 11 6 1 . . 7 6 2 1 . Secondary 2 | . . . . . . . 2 . . . . . . . . . Self-Inflicted Damage 400 | . . . . 179 . . . 143 63 . . 12 3 . . . Shots 10 | . . . . 6 . . . 3 1 . . . . . . . Rammed 9 | . . . . . . . . 1 . . . 4 2 1 1 . Targets Rammed 9 | . . . . . . . . 1 . . . 4 2 1 1 . Kicked . | . . . . . . . . . . . . . . . . . Crushed . | . . . . . . . . . . . . . . . . . Highest Temperature 820 | . . 54 364 27 . 433 132 197 360 . . 820 178 535 198 . Average Temperature 133 | . . 30 140 11 . 117 38 99 120 . . 361 77 196 123 . Received Heat Transfer 2346 | . . 27 72 20 . 99 279 141 183 . . 417 9 247 735 117 Effects 31 | . . . . . . 4 . . 1 . . 24 . 2 . . Shutdowns 3 | . . . . . . . . . . . . 3 . . . . Energy Bleed 3 | . . . . . . . . . . . . 2 . 1 . . Interference 7 | . . . . . . . . . . . . 7 . . . . Matter Decay 2 | . . . . . . . . . 1 . . 1 . . . . Short Circuit 4 | . . . . . . . . . . . . 3 . 1 . . Damage (minor) 1 | . . . . . . . . . . . . 1 . . . . Damage (major) 7 | . . . . . . 4 . . . . . 3 . . . . Damage (core) 4 | . . . . . . . . . . . . 4 . . . . Siege Activations 3 | . . . . . . . . . . . . . . 1 2 . Total Turns 57 | . . . . . . . . . . . . . . 17 40 . Longest Duration 24 | . . . . . . . . . . . . . . 17 24 . Robots Corrupted . | . . . . . . . . . . . . . . . . . Combat Hostiles . | . . . . . . . . . . . . . . . . . Parts Fried 1 | . . . . . . . . 1 . . . . . . . . Impact Corruptions . | . . . . . . . . . . . . . . . . . Robots Melted . | . . . . . . . . . . . . . . . . . Combat Hostiles . | . . . . . . . . . . . . . . . . . Parts Melted 6 | . . . . . . . . 1 1 . . . . 1 3 . Heat Transferred 6781 | . . . 375 . . 198 . 1739 927 . . 409 300 1262 1571 . Parts Sabotaged . | . . . . . . . . . . . . . . . . . Parts Stolen . | . . . . . . . . . . . . . . . . . Parts Stripped . | . . . . . . . . . . . . . . . . . Power Chain Reactions 1 | . . . . . . . . . 1 . . . . . . . Missiles Intercepted . | . . . . . . . . . . . . . . . . . Alert | -11 -10 -10 -9 -9 -9 -8 -8 -7 -6 -5 -5 -5 -4 -4 -4 -4 ------- Run | Scr Mat Min Mat Min Exi Min Mat Fac Fac Fac Upp Upp Fac Ext Cet Arc Peak Influence 428 | . . 45 226 56 . 206 274 274 199 41 . . 342 428 154 111 Initial 157 | . . . . 56 . . 1 85 102 35 . . . 157 74 61 Average 124 | . . 8 75 37 . 128 110 128 110 36 . . 84 289 86 73 Maximum Alert Level 2 | . . . 1 . . 1 1 1 . . . . 1 2 . . Low Security (%) 78 | 100 100 100 90 100 . 66 84 77 100 100 . . 92 16 100 100 Level 1 21 | . . . 9 . . 33 15 22 . . . . 7 81 . . Level 2 . | . . . . . . . . . . . . . . 1 . . Level 3 . | . . . . . . . . . . . . . . . . . Level 4 . | . . . . . . . . . . . . . . . . . Level 5 . | . . . . . . . . . . . . . . . . . High Security . | . . . . . . . . . . . . . . . . . Max Security . | . . . . . . . . . . . . . . . . . Squads Dispatched 26 | . . 1 . . . 1 6 6 1 . . . 8 3 . . Investigation 5 | . . 1 . . . . 1 1 . . . . 1 1 . . Extermination 8 | . . . . . . . . 4 1 . . . 3 . . . Reinforcement 6 | . . . . . . . 2 1 . . . . 1 2 . . Assault 1 | . . . . . . 1 . . . . . . . . . . Garrison 6 | . . . . . . . 3 . . . . . 3 . . . Intercept . | . . . . . . . . . . . . . . . . . Construction Impeded 1 | . . . . . . . 1 . . . . . . . . . Haulers Reinforced . | . . . . . . . . . . . . . . . . . Stealth | -11 -10 -10 -9 -9 -9 -8 -8 -7 -6 -5 -5 -5 -4 -4 -4 -4 --------- Run | Scr Mat Min Mat Min Exi Min Mat Fac Fac Fac Upp Upp Fac Ext Cet Arc Distress Signals 15 | . . . 2 3 . . 3 1 1 . . . 2 2 1 . Communications Jammed . | . . . . . . . . . . . . . . . . . Distress Signals . | . . . . . . . . . . . . . . . . . Times Spotted 173 | . . 3 15 6 . 9 24 24 15 . . 9 13 31 20 4 Peak Tracking Total 7 | . . 2 5 3 . 4 5 4 4 . . 5 4 6 7 4 Tactical Retreats 18 | . . 1 2 . . 2 1 . 2 . . 2 1 3 4 . Traps | -11 -10 -10 -9 -9 -9 -8 -8 -7 -6 -5 -5 -5 -4 -4 -4 -4 ------- Run | Scr Mat Min Mat Min Exi Min Mat Fac Fac Fac Upp Upp Fac Ext Cet Arc Traps Triggered 15 | . . . . . . . 1 1 4 . . . 5 4 . . Indirectly . | . . . . . . . . . . . . . . . . . Trap Hack Attempts . | . . . . . . . . . . . . . . . . . Triggered . | . . . . . . . . . . . . . . . . . Disarmed . | . . . . . . . . . . . . . . . . . Reprogrammed . | . . . . . . . . . . . . . . . . . Reused . | . . . . . . . . . . . . . . . . . Traps Extracted . | . . . . . . . . . . . . . . . . . Installed . | . . . . . . . . . . . . . . . . . Triggered . | . . . . . . . . . . . . . . . . . Machines | -11 -10 -10 -9 -9 -9 -8 -8 -7 -6 -5 -5 -5 -4 -4 -4 -4 ---------- Run | Scr Mat Min Mat Min Exi Min Mat Fac Fac Fac Upp Upp Fac Ext Cet Arc Machines Disabled 10 | . . . 2 . . . 1 3 1 . . . 2 1 . . Max in Single Turn 3 | . . . 1 . . . 1 3 1 . . . 1 . . . Machines Sabotaged . | . . . . . . . . . . . . . . . . . Garrisons Compromised . | . . . . . . . . . . . . . . . . . Overloaded Fab Kills . | . . . . . . . . . . . . . . . . . Fab Network Shutdowns . | . . . . . . . . . . . . . . . . . Hacking | -11 -10 -10 -9 -9 -9 -8 -8 -7 -6 -5 -5 -5 -4 -4 -4 -4 --------- Run | Scr Mat Min Mat Min Exi Min Mat Fac Fac Fac Upp Upp Fac Ext Cet Arc Machines Accessed 39 | . . 1 3 1 . . 6 9 3 1 . . 4 10 1 . Terminals 32 | . . . 3 1 . . 6 6 2 1 . . 2 10 1 . Fabricators 3 | . . . . . . . . 2 . . . . 1 . . . Repair Stations 1 | . . . . . . . . . 1 . . . . . . . Recycling Units 1 | . . . . . . . . . . . . . 1 . . . Scanalyzers . | . . . . . . . . . . . . . . . . . Garrison Access 1 | . . . . . . . . 1 . . . . . . . . Total Hacks 99 | . . 1 7 2 . . 16 19 6 8 . . 10 26 4 . Successful 38 | . . 1 5 . . . 5 8 3 4 . . 4 7 1 . Failed 61 | . . . 2 2 . . 11 11 3 4 . . 6 19 3 . Catastrophic 13 | . . . 1 1 . . 1 4 . 1 . . 2 3 . . Database Lockouts . | . . . . . . . . . . . . . . . . . Manual 35 | . . . . 2 1 . 12 9 . 4 . . 3 4 . . Terminals 86 | . . . 7 2 . . 16 13 3 8 . . 7 26 4 . Fabricators 5 | . . . . . . . . 4 . . . . 1 . . . Repair Stations 3 | . . . . . . . . . 3 . . . . . . . Recycling Units 2 | . . . . . . . . . . . . . 2 . . . Scanalyzers . | . . . . . . . . . . . . . . . . . Garrison Access 2 | . . . . . . . . 2 . . . . . . . . Terminal Hacks 28 | . . 1 5 . . . 4 2 2 4 . . 2 7 1 . Record 4 | . . . . . . . . 1 1 2 . . . . . . Robot Analysis 2 | . . . 2 . . . . . . . . . . . . . Prototype ID Bank 1 | . . . 1 . . . . . . . . . . . . . Open Door 4 | . . 1 . . . . . . . . . . . 2 1 . Branch Access Points 3 | . . . 1 . . . . . . . . . 1 1 . . Emergency Access Points 3 | . . . . . . . . 1 . 1 . . . 1 . . Alert Level 7 | . . . . . . . 2 . 1 1 . . 1 2 . . Unreport Threat 1 | . . . . . . . . . . . . . . 1 . . Locate Traps 2 | . . . 1 . . . 1 . . . . . . . . . Zone Layout 1 | . . . . . . . 1 . . . . . . . . . Fabricator Hacks 3 | . . . . . . . . 2 . . . . 1 . . . Network Status 2 | . . . . . . . . 2 . . . . . . . . Build 1 | . . . . . . . . . . . . . 1 . . . Repair Station Hacks 1 | . . . . . . . . . 1 . . . . . . . Scan Component 1 | . . . . . . . . . 1 . . . . . . . Recycling Unit Hacks 1 | . . . . . . . . . . . . . 1 . . . Report Inventory 1 | . . . . . . . . . . . . . 1 . . . Scanalyzer . | . . . . . . . . . . . . . . . . . Garrison Access Hacks . | . . . . . . . . . . . . . . . . . Unauthorized Hacks 5 | . . . . . . . 1 4 . . . . . . . . Terminals 5 | . . . . . . . 1 4 . . . . . . . . Assimilate 1 | . . . . . . . . 1 . . . . . . . . Botnet 3 | . . . . . . . . 3 . . . . . . . . Disrupt 1 | . . . . . . . 1 . . . . . . . . . Fabricators . | . . . . . . . . . . . . . . . . . Repair Stations . | . . . . . . . . . . . . . . . . . Recycling Units . | . . . . . . . . . . . . . . . . . Scanalyzers . | . . . . . . . . . . . . . . . . . Garrison Access . | . . . . . . . . . . . . . . . . . Data Cores Recovered . | . . . . . . . . . . . . . . . . . Used . | . . . . . . . . . . . . . . . . . Hacking Detections 34 | . . . 2 1 . . 6 7 2 1 . . 5 9 1 . Full Trace Events 3 | . . . . . . . . 1 . . . . 1 1 . . Feedback Events . | . . . . . . . . . . . . . . . . . Feedback Blocked . | . . . . . . . . . . . . . . . . . Robot Schematics Acquired . | . . . . . . . . . . . . . . . . . Robots Built . | . . . . . . . . . . . . . . . . . Matter . | . . . . . . . . . . . . . . . . . Time . | . . . . . . . . . . . . . . . . . Total Robot Build Rating . | . . . . . . . . . . . . . . . . . Part Schematics Acquired . | . . . . . . . . . . . . . . . . . Parts Built 2 | . . . . . . . . . . . . . 2 . . . Matter 278 | . . . . . . . . . . . . . 278 . . . Time 69 | . . . . . . . . . . . . . 69 . . . Total Part Build Rating 18 | . . . . . . . . . . . . . 18 . . . Parts Repaired . | . . . . . . . . . . . . . . . . . Time . | . . . . . . . . . . . . . . . . . Parts Recycled . | . . . . . . . . . . . . . . . . . Recycled Matter . | . . . . . . . . . . . . . . . . . Retrieved Matter . | . . . . . . . . . . . . . . . . . Retrieved Components . | . . . . . . . . . . . . . . . . . Parts Scanalyzed . | . . . . . . . . . . . . . . . . . Part Schematics Acquired . | . . . . . . . . . . . . . . . . . Parts Damaged . | . . . . . . . . . . . . . . . . . Bothacking | -11 -10 -10 -9 -9 -9 -8 -8 -7 -6 -5 -5 -5 -4 -4 -4 -4 ------------ Run | Scr Mat Min Mat Min Exi Min Mat Fac Fac Fac Upp Upp Fac Ext Cet Arc Used RIF Installer . | . . . . . . . . . . . . . . . . . Robots Hacked . | . . . . . . . . . . . . . . . . . Non-combat . | . . . . . . . . . . . . . . . . . Combat . | . . . . . . . . . . . . . . . . . Robot Hacks Applied . | . . . . . . . . . . . . . . . . . Relay Couplers Released 3 | . . . . . . . . 3 . . . . . . . . Programmers 3 | . . . . . . . . 3 . . . . . . . . Robots Rewired 16 | . . . . . . . . . . . . . . 16 . . Allies Hacked 1 | . . . . . . . . 1 . . . . . . . . Hacks Repelled . | . . . . . . . . . . . . . . . . . Allies | -11 -10 -10 -9 -9 -9 -8 -8 -7 -6 -5 -5 -5 -4 -4 -4 -4 -------- Run | Scr Mat Min Mat Min Exi Min Mat Fac Fac Fac Upp Upp Fac Ext Cet Arc Total Allies 21 | . . . . . . . . 1 . . . 1 . 19 . . Largest Group 6 | . . . . . . . . 1 . . . 1 1 6 4 . Highest-Rated Group 228 | . . . . . . . . 26 . . . 180 180 228 168 . Highest-Rated Ally 180 | . . . . . . . . 26 . . . 180 180 49 49 . Total Orders 9 | . . . . . . . . 1 4 2 . . 2 . . . FOLLOW 1 | . . . . . . . . 1 . . . . . . . . EXPLORE 4 | . . . . . . . . . 2 1 . . 1 . . . RETURN 4 | . . . . . . . . . 2 1 . . 1 . . . Ally Attacks 178 | . . . . . . . . . . . . 1 55 105 17 . Total Damage 4799 | . . . . . . . . . . . . 26 1764 2679 330 . Kills 34 | . . . . . . . . . . . . . 14 18 2 . Allies Corrupted 1 | . . . . . . . . . . . . . 1 . . . Allies Melted . | . . . . . . . . . . . . . . . . . Intel | -11 -10 -10 -9 -9 -9 -8 -8 -7 -6 -5 -5 -5 -4 -4 -4 -4 ------- Run | Scr Mat Min Mat Min Exi Min Mat Fac Fac Fac Upp Upp Fac Ext Cet Arc Robot Analysis Total 2 | . . . 2 . . . . . . . . . . . . . Derelict Logs Recovered 3 | . . 1 . . . . . . . . 2 . . . . . Drone Launches 4 | . . . . . . . . . 2 1 . . 1 . . . Drone Recoveries 4 | . . . . . . . . . 2 1 . . 1 . . . Exploration | -11 -10 -10 -9 -9 -9 -8 -8 -7 -6 -5 -5 -5 -4 -4 -4 -4 ------------- Run | Scr Mat Min Mat Min Exi Min Mat Fac Fac Fac Upp Upp Fac Ext Cet Arc Turns Passed 10053 | 53 37 400 540 389 224 430 1197 2044 1365 122 280 252 1148 1263 252 57 Spaces Moved 7184 | 48 37 409 329 353 273 390 498 1692 1129 110 281 144 550 677 224 40 Core 218 | 3 . . . . . . . . . . . . . . 175 40 Treads 42 | . . . . 20 . . . . . . . 22 . . . . Legs 410 | . . . . . . . 365 . . . . . 39 . 6 . Wheels 6499 | 45 37 409 329 333 273 390 133 1692 1129 110 281 122 496 677 43 . Hover 15 | . . . . . . . . . . . . . 15 . . . Flight . | . . . . . . . . . . . . . . . . . Fastest Speed 50 | 50 90 90 90 80 80 90 80 80 90 90 100 100 100 105 50 50 Average Speed 97 | 85 90 90 91 92 80 90 117 91 98 99 100 124 124 105 62 112 Slowest Speed 260 | 90 90 90 100 145 80 90 210 110 105 100 100 210 260 120 200 150 Overloaded Moves . | . . . . . . . . . . . . . . . . . Propulsion Burnouts . | . . . . . . . . . . . . . . . . . Robots Hopped . | . . . . . . . . . . . . . . . . . Cave-ins Triggered 2 | . . . . 2 . . . . . . . . . . . . Exploration Rate (%) 43 | 5 11 91 46 66 61 67 40 37 37 7 52 14 19 64 74 55 Regions Visited 16 Branch Regions 9 Pre-discovered Areas 2 | . . . . . . . . . . . 2 . . . . . Known Exits Taken 3 | . . . 1 . . . . . . . . . 1 1 . . Unknown Exits Taken 13 | 1 1 1 . 1 1 1 1 1 1 1 1 1 . . 1 . Scrap Searched 5 | . . 1 . . . 2 . . . . 1 1 . . . . Spaces Dug 74 | . . . . 45 . . 5 4 7 . . . 2 11 . . Terrain Destroyed 210 | . . . . 114 . 1 26 21 17 . . . 9 21 1 . Melee . | . . . . . . . . . . . . . . . . . Projectile 80 | . . . . . . 1 26 10 12 . . . 9 21 1 . AOE 130 | . . . . 114 . . . 11 5 . . . . . . . Terrain Rammed . | . . . . . . . . . . . . . . . . . Walls Destroyed . | . . . . . . . . . . . . . . . . . Machines Disabled . | . . . . . . . . . . . . . . . . . Actions | -11 -10 -10 -9 -9 -9 -8 -8 -7 -6 -5 -5 -5 -4 -4 -4 -4 --------- Run | Scr Mat Min Mat Min Exi Min Mat Fac Fac Fac Upp Upp Fac Ext Cet Arc Total 9612 | 56 39 437 520 384 278 433 1028 2090 1318 122 280 186 964 1135 290 52 Wait 1649 | . . 5 159 . . 13 434 287 125 6 . 6 346 224 33 11 Move 7168 | 47 36 408 328 351 272 389 497 1691 1128 109 280 144 549 676 223 40 Hop . | . . . . . . . . . . . . . . . . . Pick Up 37 | 2 1 8 3 1 . . 5 5 1 . . 2 5 3 1 . Fast Attach 107 | 6 . . 1 6 3 4 19 15 10 2 . 3 22 12 4 . Attach 27 | . . 1 2 1 . 5 1 4 . 1 . 2 1 3 5 1 Detach 15 | . . . . . 1 3 1 1 2 1 . . 3 2 1 . Swap 52 | 1 2 2 3 3 . 2 8 6 5 2 . 4 3 7 4 . Drop 104 | . . 9 2 3 2 1 25 23 7 1 . 4 12 12 3 . Fire 265 | . . 4 22 18 . 16 38 49 24 . . 18 21 40 15 . Melee . | . . . . . . . . . . . . . . . . . Ram 8 | . . . . . . . . 1 . . . 3 2 1 1 . Kick . | . . . . . . . . . . . . . . . . . Crush . | . . . . . . . . . . . . . . . . . Escape Stasis 56 | . . . . 1 . . . 8 16 . . . . 31 . . Rewire 124 | . . . . . . . . . . . . . . 124 . . Trap . | . . . . . . . . . . . . . . . . . Miscellaneous . | . . . . . . . . . . . . . . . . . Route ------- -11/Scrapyard -10/Materials -10/Mines (discovered 2 exits: *Mat x2) -9/Materials (discovered 2 exits: *Min / Sto) -9/Mines -9/Exiles -8/Mines -8/Materials -7/Factory -6/Factory -5/Factory -5/Upper Caves -5/Upper Caves -4/Factory (discovered 4 exits: Upp x2 / *Ext x2) -4/Extension (discovered 2 exits: [*Res] / *Cet) -4/Cetus (discovered 2 exits: [*Res] / *Arc) -4/Archives (discovered 1 exit: [*Hub]) History --------- Turn | Location | Event 37 | -11/Scrapyard | Discovered new exit (range 12) 54 | -11/Scrapyard | Entered Materials 61 | -10/Materials | Discovered new exit (range 15) 91 | -10/Materials | Entered Mines 109 | -10/Mines | Found a damaged Exp. Sensor Array with a note attached 112 | -10/Mines | Found Prototype Device 121 | -10/Mines | Met a Derelict bent on vengeance 124 | -10/Mines | Discovered new exit (range 9) 132 | -10/Mines | Received a Rocket Launcher from a helpful Derelict 133 | -10/Mines | Identified Exp. Sensor Array 205 | -10/Mines | Met a Derelict shopkeep closing up shop 300 | -10/Mines | Build established: Mutant 344 | -10/Mines | Met a Derelict testing a Signal Generator 348 | -10/Mines | Found Signal Generator 427 | -10/Mines | Discovered new exit (range 5) 491 | -10/Mines | Entered Materials 491 | -9/Materials | Evolved 2 slots: Utility x1, Weapon x1 492 | -9/Materials | Identified exit to Storage 504 | -9/Materials | Identified exit to Mines 797 | -9/Materials | Build established: Skirmisher 1031 | -9/Materials | Entered Mines 1078 | -9/Mines | Assembled infested the area 1083 | -9/Mines | Assisted by a Guerilla fighting off Assembled 1327 | -9/Mines | Crushed by falling debris 1395 | -9/Mines | Crushed by falling debris 1395 | -9/Mines | Core integrity fell below 50% 1416 | -9/Mines | Deemed a non-threat by the Exiles lab entrance 1416 | -9/Mines | Discovered new exit (range 5) 1420 | -9/Mines | Entered Exiles 1441 | -9/Exiles | Met 8R-AWN 1453 | -9/Exiles | Met EX-HEX 1475 | -9/Exiles | Met EX-BIN 1485 | -9/Exiles | Aligned with FarCom system 1486 | -9/Exiles | Given EX-Vault access code 1505 | -9/Exiles | Opened EX-Vault 1510 | -9/Exiles | Found Prototype Device 1510 | -9/Exiles | Identified Supersonic Drone Bay 1513 | -9/Exiles | Found Prototype Energy Cannon 1513 | -9/Exiles | Identified Gui. Plasma Cannon 1533 | -9/Exiles | Warned to stay clear of 0b10 Research branches 1559 | -9/Exiles | Met EX-DEC 1634 | -9/Exiles | Discovered new exit (range 12) 1644 | -9/Exiles | Left Exiles lab with Supersonic Drone Bay 1644 | -9/Exiles | Entered Mines 1933 | -8/Mines | Lost 3 parts (1u2w) 2064 | -8/Mines | Discovered new exit (range 13) 2074 | -8/Mines | Entered Materials 2074 | -8/Materials | Evolved 2 slots: Propulsion x2 2337 | -8/Materials | Garrison activated, responded to threat 2473 | -8/Materials | Build established: Scavenger-Skirmisher 3237 | -8/Materials | Discovered new exit (range 8) 3271 | -8/Materials | Entered Factory 3271 | -7/Factory | Evolved 2 slots: Utility x2 3885 | -7/Factory | Build established: Skirmisher 5310 | -7/Factory | Discovered new exit (range 3) 5315 | -7/Factory | Entered another Factory area 5315 | -6/Factory | Evolved 2 slots: Power x1, Weapon x1 6657 | -6/Factory | Discovered new exit (range 19) 6680 | -6/Factory | Entered another Factory area 6680 | -5/Factory | Evolved 2 slots: Utility x1, Weapon x1 6738 | -5/Factory | Discovered new exit (range 53) 6802 | -5/Factory | Entered Upper Caves 6803 | -5/Upper Caves | Learned location of Armory (-3) 7039 | -5/Upper Caves | Learned location of Warlord (-5) 7067 | -5/Upper Caves | Discovered new exit (range 13) 7082 | -5/Upper Caves | Entered another Upper Caves area 7095 | -5/Upper Caves | Build established: Gunner 7196 | -5/Upper Caves | Core integrity fell below 50% 7327 | -5/Upper Caves | 7V-RTL showed up to help 7330 | -5/Upper Caves | 7V-RTL revealed a hidden path 7334 | -5/Upper Caves | Entered Factory 7334 | -4/Factory | Accompanied by 1 ally (7V-RTL) 7334 | -4/Factory | Evolved 2 slots: Power x1, Propulsion x1 7353 | -4/Factory | Lost 8 parts (2p2n1u3w) 7544 | -4/Factory | Fabricated Stasis Projector (x2) 7940 | -4/Factory | Found Adv. Powered Armor 8092 | -4/Factory | Build established: Scavenger-Mutant 8163 | -4/Factory | Found Adv. Powered Armor 8368 | -4/Factory | Garrison activated, responded to threat 8428 | -4/Factory | Identified exit to Upper Caves 8428 | -4/Factory | Identified exit to Extension 8452 | -4/Factory | Garrison activated, responded to threat 8482 | -4/Factory | Entered Extension 8621 | -4/Extension | Identified exit to Cetus 8850 | -4/Extension | Rescued a captive Derelict 9047 | -4/Extension | Build established: Scavenger-Skirmisher 9419 | -4/Extension | Rescued a captive Derelict 9420 | -4/Extension | Rescued a captive Derelict 9725 | -4/Extension | Discovered new exit (range 10) 9745 | -4/Extension | Entered Cetus 9745 | -4/Cetus | Accompanied by 4 allies 9758 | -4/Cetus | Spotted Cetus Guard 9758 | -4/Cetus | Spotted Cetus Guard 9764 | -4/Cetus | Spotted Cetus Guard 9777 | -4/Cetus | Spotted Cetus Guard 9778 | -4/Cetus | Allies destroyed Cetus Guard 9790 | -4/Cetus | Allies destroyed Cetus Guard 9794 | -4/Cetus | Destroyed Cetus Guard 9794 | -4/Cetus | Destroyed Cetus Guard 9878 | -4/Cetus | Discovered new exit (range 15) 9904 | -4/Cetus | Core integrity fell below 50% 9913 | -4/Cetus | Core integrity fell below 20% 9937 | -4/Cetus | Lost 21 parts (3p7n4u7w) 9989 | -4/Cetus | Discovered new exit (range 16) 9997 | -4/Cetus | Entered Archives 10050 | -4/Archives | Unable to access archive contents 10053 | -4/Archives | Discovered new exit (range 15) 10054 | -4/Archives | Destroyed by Y-72 Warden with Railgun Last Messages --------------- 09997_ Receiving FarCom transmissions... Aside from the options menu, there are many more interface features and behavior you can tweak in Cogmind's advanced.cfg file, the functionality of which is described in the manual under Advanced UI: Advanced Options. 10035_ Penetrated by Slug. 10041_ Adv. Heat Sink destroyed. 10043_ Penetrated by Slug. 10044_ Archive Hub disabled. 10045_ Slug penetrates Archive Hub. 10047_ Slug penetrates O-32 Director. 10047_ Penetrated by Slug. 10050_ Connecting with Archive Terminal... 10050_ Current location identified: Archives 10050_ Penetrated by Slug. 10053_ EXIT=FOUND 10053_ Penetrated by Slug. 10053_ Adv. Cryofiber Web destroyed. 10053_ Penetrated by Slug. 10053_ Slug penetrates Y-72 Warden. 10054_ Penetrated by Slug. Map ----- +----------------------------------------------------+ | ??????????????????????????????????????????? | | ??????????????????????????????????????????? | | ??????????????????????????????????????????? | | ??????????????????????????????????????????? | | ??????????????????????????????????????????? | | ??????????????????????????????????????????? | | ??????????????????????????????????????????? | | ??????????????????????????????????????????? | | ??????????????????????????????????????????? | | ??????????????????????"##?????????????????? | | ??????????????????"""""""#????????????????? | | ??????????????????"""V"""#?? #????????????? | | ??????????????????""" """# #????????????? | | ????????????????##"" ""#o ##???????????? | | ??############### Y #???????????? | | ??# o "???????????? | | ??# ""??????????? | | ??# o "??????????? | | ??#####/###";####Y V?????????? | | ??# #""" "??????????? | | ??# #"" ""??????????? | | ??# """""" ""??????????? | | ??#"""""""""#"V ###?????????? | | ??#"""""""""""" ????????? | | ??#"""""""""#"""" ????????? | | ??#"""""""""#"" Y@ ????????? | | ???############## Y#???????????? | | ????????????????## #"" ""##???????????? | | ?????????????????# #""" """#????????????? | | ?????????????????# #?""V""??????????????? | | ?????????????????# #????????????????????? | | ?????????????????# #????????????????????? | | ?????????????????# #????????????????????? | | ?????????????????# #????????????????????? | | ?????????????????? #????????????????????? | | ?????????????????? o#????????????????????? | | ?????????????????? +????????????????????? | | ?????????????????? #????????????????????? | | ?????????????????? #????????????????????? | | ?????????????????? < #????????????????????? | | ?????????????????? ?????????????????????? | | ??????????????????????????????????????????? | | ??????????????????????????????????????????? | | ??????????????????????????????????????????? | | | | | | | | | | | | | +----------------------------------------------------+ Best States ------------- Heat Dissipation 76 Coolant Potential 100 Energy Generation 42 Energy Capacity 850 Matter Stores 350 Matter Capacity 350 Sight Range 16 Robot Scan Range 30 Terrain Scan Range 16 Terrain Scan Density 85 ECM Strength 2 Additional Mass Support 9 Base Temperature (-) 200 Armor Coverage 800 Resistance: KI 30 Thermal Conversion 30 Reclamation Efficiency 20 Evasion (%) 50 Targeting Accuracy 5 Recoil Reduction 2 Item Schematics ----------------- None Robot Schematics ------------------ None Fabricated ------------ Stasis Projector | x2 | -4/Factory | Preloaded Alien Tech Used ----------------- None Achievements -------------- None Challenges ------------ None Game ------ Seed HypercooledTargetWheel Manual? 0 Play Time 02:40:06 Cumulative 72.7 hours Start 2022.02.06 @ 10:29:23 End 2022.02.06 @ 15:50:40 Sessions 1 Manual Loads 0 Difficulty Rogue Special Mode None Game No. 78 Rogue 78 Adventurer 0 Explorer 0 Win Type - Total 0 Types 0/0/0/0/0/0/0/0/0 Lore% 48 Gallery% 52 Achievement% 35 Wizard Run 0 Options --------- ASCII 0 Keyboard 1 Movement Numpad Keybinds 0 Fullscreen 0 Font 32/Terminus Map View 76x50 Tactical HUD 1 Map Filters NONE Filters NONE Steam 1 RUN: cd6876cd-3f83-4632-979d-7681cb92666a